[Event "MCCT Oslo Esports Cup 2022"]
[Site "Oslo"]
[Date "2022.04.20"]
[Round "5.4"]
[White "Duda, Jan-Krzysztof"]
[Black "Le, Quang Liem"]
[Result "1/2-1/2"]
[ECO "A13"]
[WhiteElo "2750"]
[BlackElo "2709"]
[Annotator "TA"]
[PlyCount "111"]
[EventDate "2022.04.14"]
[EventType "tourn"]
[EventCountry "NOR"]
[SourceTitle "playchess.com"]
[Source "ChessBase"]
[SourceQuality "1"]
[TimeControl "900+10"]

{[%evp 11,111,10,26,37,31,28,25,31,45,32,17,33,31,14,17,0,0,1,35,0,0,0,0,0,0,0,0,0,0,0,0,0,0,-53,0,0,0,0,0,0,0,-8,0,0,0,-33,-31,-33,-31,-33,-23,-22,-17,-41,-41,-41,-41,-41,-41,-41,-41,-41,-41,-41,-41,-41,-41,-41,-41,-41,-41,-41,-41,-41,-41,-41,-37,-37,-37,-62,-62,-62,-62,-62,-62,-62,-62,-62,-62,-62,-62,-62,-62,-62,-62,-62,0,-62,0,-62,0,-62]} 1. Nf3 {[%emt 0:00:00]} d5 {[%emt 0:00:00]} 2. c4 {[%emt 0:00:02]} e6 {[%emt 0:00:02]} 3. b3 {[%emt 0:00:04]} Nf6 {[%emt 0:00:02]} 4. Bb2 {[%emt 0:00:12]} Be7 {[%emt 0:00:01]} 5. g3 {[%emt 0:00:01]} O-O {[%emt 0:00:06]} 6. Bg2 {[%emt 0:00:01]} a5 {[%emt 0:00:34][%cal Oa5a4]} 7. Nc3 {[%emt 0:00:23] A13: English Opening: 1...e6.} c6 {[%emt 0:01:31][%cal Bc7c6,Bc6c5,Bc5d4][%mdl 32]} 8. O-O {[%emt 0:01:18]} d4 {[%emt 0:00:25]} 9. Na4 {[%emt 0:00:45] White has an edge.} c5 {[%emt 0:00:34]} 10. e3 {[%emt 0:00:05][%cal Re3d4]} Nc6 {[%emt 0:00:11]} 11. exd4 {[%emt 0:00:23]} cxd4 {[%emt 0:00:00]} 12. Re1 {[%emt 0:00:02] Prevents e5.} Bd7 {[%emt 0:02:03]} 13. a3 {[%emt 0:01:37]} Re8 {[%emt 0:01:13]} 14. c5 {[%emt 0:03:27]} Rb8 {[%emt 0:00:04]} 15. Rc1 {[%emt 0:00:26]} Bf8 $1 {[%emt 0:00:30]} 16. Nxd4 {[%emt 0:00:40]} Nxd4 {[%emt 0:00:05]} 17. Bxd4 {[%emt 0:00:00] Threatens to win with Nb6.} Bxa4 {[%emt 0:00:01]} 18. Bxf6 {[%emt 0:00:02]} Qxf6 {[%emt 0:00:09]} 19. bxa4 {[%emt 0:00:01]} Red8 {[%emt 0:00:01] [#]} 20. Re3 $146 {[%emt 0:01:27]} ({Predecessor:} 20. Re4 Rd4 21. Qe2 Rc8 22. Rxd4 Qxd4 23. Qe3 Qxe3 24. fxe3 Rxc5 25. Rb1 Rc8 26. Bxb7 {½-½ (50) Gomez Jurado,L (2293)-Fernandez Garcia,G (1993) Barcelona 2019}) 20... Qd4 {[%emt 0:02:38][%csl LRc5,LRd2]} 21. Rec3 {[%emt 0:00:29]} Qxd2 {[%emt 0:00:57]} 22. Qb3 {[%emt 0:01:19] [#]} (22. Qf1 $11) 22... Qd7 {[%emt 0:01:09]} ({Better is} 22... Rd3 $1 $15 23. Qc4 Rxc3 24. Qxc3 Qxc3 25. Rxc3 Rc8) 23. h4 {[%emt 0:00:36]} g6 {[%emt 0:01:01]} 24. Qb5 {[%emt 0:00:29]} Qc7 {[%emt 0:00:18]} 25. Qb6 {[%emt 0:02:07]} Rdc8 {[%emt 0:00:05]} 26. Bf3 {[%emt 0:00:15]} h5 {[%emt 0:00:42]} 27. Kg2 {[%emt 0:00:02]} Be7 {[%emt 0:00:22]} 28. R1c2 {[%emt 0:00:34]} Qxb6 {[%emt 0:00:52]} 29. cxb6 {[%emt 0:00:01]} Rxc3 {[%emt 0:00:01]} 30. Rxc3 $15 {[%emt 0:00:01][%cal Bc2c3,Bc3b3,Bb3b5][%mdl 4128] Endgame KRB-KRB} Bd8 {[%emt 0:00:00] Inhibits Rc7.} 31. Rb3 {[%emt 0:01:08]} Ra8 {[%emt 0:00:08]} 32. Rb5 {[%emt 0:00:02]} Ra6 {[%emt 0:00:12]} 33. Bxb7 {[%emt 0:00:07]} Rxb6 {[%emt 0:00:01]} 34. Rxb6 {[%emt 0:00:01]} Bxb6 {[%emt 0:00:00] KB-KB} 35. f4 {[%emt 0:00:01]} Bc5 {[%emt 0:00:12]} 36. Kf3 {[%emt 0:00:02]} Bxa3 {[%emt 0:00:01]} 37. Be4 {[%emt 0:00:02]} Kf8 {[%emt 0:00:03]} 38. Bd3 {[%emt 0:00:01]} Bb4 {[%emt 0:00:02]} 39. Bc4 {[%emt 0:00:01]} Be1 {[%emt 0:00:01]} 40. Bd3 {[%emt 0:00:03]} Ke7 {[%emt 0:00:01]} 41. Bc4 {[%emt 0:00:03]} Kf6 {[%emt 0:00:17]} 42. Bb3 {[%emt 0:00:12]} Bc3 {[%emt 0:00:01]} 43. Bc4 {[%emt 0:00:13]} e5 {[%emt 0:00:06]} 44. fxe5+ {[%emt 0:00:01]} Bxe5 {[%emt 0:00:01]} 45. g4 {[%emt 0:00:30]} hxg4+ {[%emt 0:00:33]} 46. Kxg4 {[%emt 0:00:00]} Kg7 {[%emt 0:00:01]} 47. h5 {[%emt 0:00:03]} f5+ {[%emt 0:00:02]} 48. Kg5 {[%emt 0:00:01]} Bf6+ {[%emt 0:00:08]} 49. Kf4 {[%emt 0:00:00]} gxh5 {[%emt 0:00:02]} 50. Kxf5 {[%emt 0:00:00]} h4 {[%emt 0:00:03]} 51. Kg4 {[%emt 0:00:02]} Bd8 {[%emt 0:00:01]} 52. Kh3 {[%emt 0:00:01]} Kh8 {[%emt 0:00:00]} 53. Bb5 {[%emt 0:00:01]} Kg7 {[%emt 0:00:00]} 54. Bc4 $1 {[%emt 0:00:00]} Kh8 {[%emt 0:00:00]} 55. Bb5 $1 {[%emt 0:00:01]} Kg7 {[%emt 0:00:00]} 56. Bc4 $1 {[%emt 0:00:00] Weighted Error Value: White=0.06 (flawless) /Black=0.07 (flawless)} 1/2-1/2

[Event "MCCT Oslo Esports Cup 2022"]
[Site "Oslo"]
[Date "2022.04.20"]
[Round "5.5"]
[White "Giri, Anish"]
[Black "Mamedyarov, Shakhriyar"]
[Result "1/2-1/2"]
[ECO "B40"]
[WhiteElo "2773"]
[BlackElo "2771"]
[Annotator "TA"]
[PlyCount "87"]
[EventDate "2022.04.14"]
[EventType "tourn"]
[EventCountry "NOR"]
[SourceTitle "playchess.com"]
[Source "ChessBase"]
[SourceQuality "1"]
[TimeControl "300+3"]

{[%evp 9,87,0,39,38,38,34,43,32,61,59,59,62,55,53,59,61,97,99,101,47,48,38,39,50,83,76,66,52,50,52,74,52,69,66,87,70,74,77,112,102,181,72,88,81,81,75,68,73,75,52,62,38,52,50,58,58,60,58,92,50,58,57,58,20,20,20,29,29,29,29,33,29,29,29,29,29,54,48,54,30]} 1. e4 {[%emt 0:00:00]} c5 {[%emt 0:00:00]} 2. Nf3 {[%emt 0:00:01]} e6 {[%emt 0:00:01]} 3. b3 {[%emt 0:00:01]} Nc6 {[%emt 0:00:10]} 4. Bb2 {[%emt 0:00:01]} a6 {[%emt 0:00:05]} 5. c4 {[%emt 0:00:01]} d6 {[%emt 0:00:03]} 6. d4 {[%emt 0:00:18] B40: Sicilian: 2...e6, Unusual lines.} cxd4 {[%emt 0:00:04]} 7. Nxd4 {[%emt 0:00:01]} Nf6 {[%emt 0:00:06]} 8. Nc3 {[%emt 0:00:01]} Qa5 {[%emt 0:00:13]} 9. Nxc6 {[%emt 0:00:14]} bxc6 {[%emt 0:00:00]} 10. Bd3 {[%emt 0:00:02] [#]} Be7 $146 {[%emt 0:00:30]} ({Predecessor:} 10... e5 11. O-O Be7 12. Na4 Bg4 13. Qc2 Nd7 14. Bc3 Qc7 15. f4 f6 16. f5 g5 {1-0 (42) Della Morte,P (2273)-Dominguez Aguilar,G (2321) Mexico City 2020}) 11. O-O {[%emt 0:00:01]} O-O {[%emt 0:00:01]} 12. Qe1 {[%emt 0:00:04][%cal Oc3d5]} Qb6 {[%emt 0:00:42]} 13. Na4 {[%emt 0:00:09]} Qa7 {[%emt 0:00:01]} 14. c5 {[%emt 0:00:24]} (14. e5 $16 dxe5 15. Qxe5 (15. Bxe5 Bb7 $16)) 14... dxc5 $14 {[%emt 0:00:05]} 15. Rc1 {[%emt 0:00:00]} Rd8 {[%emt 0:00:05]} 16. Qe2 {[%emt 0:00:09]} c4 {[%emt 0:00:35]} 17. Rxc4 {[%emt 0:00:07]} c5 {[%emt 0:00:03]} 18. Rfc1 {[%emt 0:00:44][%cal Ra4c5]} Bd7 {[%emt 0:00:03]} 19. Bxf6 {[%emt 0:01:10]} gxf6 {[%emt 0:00:01]} 20. Nb2 {[%emt 0:01:40] Black must now prevent Qh5.} Bb5 {[%emt 0:00:08]} 21. R4c3 {[%emt 0:00:06]} Bd6 {[%emt 0:00:10]} 22. Qg4+ {[%emt 0:00:14]} Kf8 {[%emt 0:00:02]} 23. Nc4 {[%emt 0:00:10][%cal Oe4e5]} Bxc4 {[%emt 0:00:34]} 24. Bxc4 {[%emt 0:00:00] Hoping for Rh3.} ({Not} 24. bxc4 Be5 25. Rb3 Rab8 $15) 24... Ke7 {[%emt 0:00:01] [#]} (24... h5 $16 {keeps fighting.} 25. Qxh5 Ke7) 25. Rh3 {[%emt 0:00:12]} (25. f4 $1 $18 {is more deadly.}) 25... Rg8 $16 {[%emt 0:00:01]} 26. Qe2 {[%emt 0:00:07][%cal Oe4e5] &Bianco is more active.} Rg7 {[%emt 0:00:03]} 27. Rd1 {[%emt 0:00:03]} Rag8 {[%emt 0:00:14]} 28. g3 {[%emt 0:00:01]} Be5 {[%emt 0:00:01]} 29. Kg2 {[%emt 0:00:02]} a5 {[%emt 0:00:02]} 30. Qf3 {[%emt 0:00:03]} Qc7 {[%emt 0:00:11]} 31. Rh6 {[%emt 0:00:03]} Rd8 {[%emt 0:00:02]} 32. Rxd8 {[%emt 0:00:13]} Qxd8 {[%emt 0:00:00]} 33. Qe2 {[%emt 0:00:02]} Qd4 {[%emt 0:00:11]} 34. a4 {[%emt 0:00:02]} Qc3 {[%emt 0:00:12]} 35. Rh4 {[%emt 0:00:02]} Bd4 {[%emt 0:00:03]} 36. Rg4 {[%emt 0:00:03]} Rxg4 {[%emt 0:00:03]} 37. Qxg4 {[%emt 0:00:00]} Qd2 {[%emt 0:00:03]} 38. Qe2 {[%emt 0:00:01]} Qxe2 {[%emt 0:00:05]} 39. Bxe2 $11 {[%emt 0:00:00] KB-KB} Bc3 {[%emt 0:00:01]} 40. Bh5 {[%emt 0:00:05]} Bd4 {[%emt 0:00:03]} 41. Kf3 {[%emt 0:00:00]} Bc3 {[%emt 0:00:03]} 42. Ke2 {[%emt 0:00:01]} f5 {[%emt 0:00:07]} 43. exf5 {[%emt 0:00:02]} exf5 {[%emt 0:00:06]} 44. Kf3 {[%emt 0:00:03] Weighted Error Value: White=0.10 (very precise) /Black=0.12 (very precise)} 1/2-1/2

[Event "MCCT Oslo Esports Cup 2022"]
[Site "Oslo"]
[Date "2022.04.20"]
[Round "5.5"]
[White "Le, Quang Liem"]
[Black "Duda, Jan-Krzysztof"]
[Result "1-0"]
[ECO "E12"]
[WhiteElo "2709"]
[BlackElo "2750"]
[Annotator "TA"]
[PlyCount "79"]
[EventDate "2022.04.14"]
[EventType "tourn"]
[EventCountry "NOR"]
[SourceTitle "playchess.com"]
[Source "ChessBase"]
[SourceQuality "1"]
[TimeControl "300+3"]

{[%evp 12,79,29,13,41,26,33,37,74,66,72,41,31,33,34,1,1,0,24,18,16,0,0,0,0,0,0,0,0,0,0,0,56,52,51,39,62,41,50,47,62,61,86,0,0,0,0,0,93,88,106,0,0,0,0,0,0,0,175,157,986,964,645,84,260,193,164,0,29937,29965]} 1. d4 {[%emt 0:00:00]} Nf6 {[%emt 0:00:00]} 2. c4 {[%emt 0:00:01]} e6 {[%emt 0:00:02]} 3. Nf3 {[%emt 0:00:02]} b6 {[%emt 0:00:01]} 4. a3 {[%emt 0:00:06]} Bb7 {[%emt 0:00:02]} 5. Nc3 {[%emt 0:00:01]} Ne4 {[%emt 0:00:02]} 6. Nxe4 {[%emt 0:00:09]} Bxe4 {[%emt 0:00:00]} 7. Bf4 {[%emt 0:00:07]} Bd6 {[%emt 0:00:44] E12: Queen's Indian: Unusual White 4th moves, 4 a3, 4 Nc3 Bb7 5 a3 and 4 Nc3 Bb7 .} 8. Bg3 {[%emt 0:00:09]} Bxf3 {[%emt 0:00:23]} 9. gxf3 {[%emt 0:00:04] [#]} O-O $146 {[%emt 0:00:02] White is slightly better.} ({Predecessor:} 9... Qf6 10. e3 Nc6 11. Bg2 h5 12. Bxd6 cxd6 13. f4 Rc8 14. O-O h4 15. b3 h3 {½-½ (41) Adelseck,H (2543)-Perry,D (2456) ICCF email 2008}) 10. e3 {[%emt 0:00:04]} f5 {[%emt 0:00:02]} 11. Bxd6 {[%emt 0:00:06]} (11. Bd3 {with more complications.} f4 12. c5 bxc5 13. dxc5 Be5 14. Qc2) 11... cxd6 {[%emt 0:00:00]} 12. f4 {[%emt 0:00:02]} Nc6 {[%emt 0:00:06]} 13. Bg2 {[%emt 0:00:04] next d5 is good for White.} Rc8 {[%emt 0:00:02]} 14. Rc1 {[%emt 0:00:02]} Ne7 {[%emt 0:00:06]} 15. h4 {[%emt 0:00:17][%cal Bh2h4,Bh4h5][%mdl 32]} Rc7 {[%emt 0:00:08]} 16. h5 {[%emt 0:00:20]} Qc8 {[%emt 0:00:07]} 17. b3 {[%emt 0:00:28]} d5 {[%emt 0:00:09][%cal Rd5c4]} 18. h6 {[%emt 0:00:09]} dxc4 {[%emt 0:00:24]} 19. hxg7 {[%emt 0:00:04]} Rf7 {[%emt 0:00:00]} 20. bxc4 {[%emt 0:00:49]} Rxg7 {[%emt 0:00:40]} 21. Bf1 {[%emt 0:00:21]} b5 {[%emt 0:01:09]} (21... Nd5 $11) 22. c5 $14 {[%emt 0:00:06]} a6 {[%emt 0:00:01][%cal Od7d6]} 23. Kd2 {[%emt 0:00:12]} Nd5 {[%emt 0:00:07][%cal Od7d6]} 24. Bd3 $1 {[%emt 0:00:10]} Nf6 {[%emt 0:00:11]} 25. Qf3 {[%emt 0:00:29]} Qd8 {[%emt 0:00:22]} 26. Ke2 {[%emt 0:00:12]} Kh8 {[%emt 0:00:42]} 27. Qh3 {[%emt 0:00:29] &Bianco is more active.} (27. Rhg1 $16) 27... d6 $11 {[%emt 0:00:03]} 28. cxd6 {[%emt 0:00:12]} Qxd6 {[%emt 0:00:00]} 29. Qh4 {[%emt 0:00:08]} Rxc1 {[%emt 0:00:28]} (29... Nd5 $11) 30. Rxc1 $16 {[%emt 0:00:00]} Qxa3 {[%emt 0:00:03]} 31. Rc6 {[%emt 0:00:35]} ({White must play} 31. Rc8+ $16 Ng8 32. Qd8 (32. Bc2 Qa2 $14)) 31... Rg6 $1 $11 {[%emt 0:00:18]} 32. Qh1 {[%emt 0:00:10]} Qa2+ {[%emt 0:00:05]} 33. Rc2 {[%emt 0:00:07]} Qd5 {[%emt 0:00:01]} 34. Qa1 {[%emt 0:00:04]} Rg2 $2 {[%emt 0:00:08]} (34... Ng4 $11 {and Black stays safe.}) 35. Qxa6 $18 {[%emt 0:00:12] Strongly threatening Rc5.} b4 $2 {[%emt 0:00:05]} (35... Rg1 $16) 36. Rc5 {[%emt 0:00:08]} Qd7 {[%emt 0:00:03] [#]} 37. Rb5 $2 {[%emt 0:00:07]} (37. Bxf5 $1 $18 {[%mdl 512] has better winning chances.} Qe7 38. Bxe6) 37... Nd5 $2 {[%emt 0:00:03]} (37... Qe8 $16) 38. Rb7 {[%emt 0:00:03]} Qe8 {[%emt 0:00:03] [#]} 39. Qd6 $2 {[%emt 0:00:04] Really sharp!} (39. Qa7 $1 $18 {Rb8 is the strong threat.} Qh5+ 40. Kd2 Rxf2+ 41. Ke1 Qh1+ 42. Kxf2 Qh2+ 43. Ke1 Qg1+ 44. Kd2 Qf2+ 45. Kc1 Qe1+ 46. Kb2 Qc3+ 47. Ka2 Qd2+ 48. Kb3 Qxd3+ 49. Ka4 Qa3+ 50. Kb5 Qxa7 51. Rxa7) 39... Nf6 $2 {[%emt 0:00:08][%mdl 8192]} (39... Qh5+ $11 40. Kd2 Rxf2+ 41. Ke1 Qh1+ 42. Kxf2 Qh2+ 43. Kf1 Qh1+ 44. Kf2 Qh2+ 45. Kf1 Qh1+ 46. Kf2) 40. Rb8 {[%emt 0:00:01] Weighted Error Value: White=0.35/Black=0.49} 1-0

[Event "MCCT Oslo Esports Cup 2022"]
[Site "Oslo"]
[Date "2022.04.20"]
[Round "5.6"]
[White "Mamedyarov, Shakhriyar"]
[Black "Giri, Anish"]
[Result "1-0"]
[ECO "E60"]
[WhiteElo "2771"]
[BlackElo "2773"]
[Annotator "TA"]
[PlyCount "79"]
[EventDate "2022.04.14"]
[EventType "tourn"]
[EventCountry "NOR"]
[SourceTitle "playchess.com"]
[Source "ChessBase"]
[SourceQuality "1"]
[TimeControl "300+3"]

{[%evp 9,79,10,21,22,24,13,30,21,28,0,-17,-11,6,7,26,0,55,39,63,-69,-59,-39,-41,-98,26,19,40,36,41,8,73,17,18,14,14,-292,-289,-409,-284,-301,-285,-298,-279,-273,-201,-372,0,0,82,68,244,248,310,295,605,585,991,981,918,902,29967,1035,29981,29982,29981,29982,29982,29983,29992,29985,29985,29984]} 1. d4 {[%emt 0:00:00]} Nf6 {[%emt 0:00:00]} 2. c4 {[%emt 0:00:01]} g6 {[%emt 0:00:01]} 3. Nf3 {[%emt 0:00:01]} Bg7 {[%emt 0:00:01]} 4. e3 {[%emt 0:00:00]} O-O {[%emt 0:00:00]} 5. Be2 {[%emt 0:00:01]} c5 {[%emt 0:00:01]} 6. d5 {[%emt 0:00:01] E60: King's Indian: Unusual lines and Fianchetto Variation without Nc3.} d6 {[%emt 0:00:01]} 7. O-O {[%emt 0:00:04]} e6 {[%emt 0:00:01]} 8. Nc3 {[%emt 0:00:02] White has an edge.} Re8 {[%emt 0:00:00]} 9. h3 $5 {[%emt 0:00:03][%mdl 4] Exploring less charted territory.} exd5 {[%emt 0:00:09]} 10. cxd5 {[%emt 0:00:01]} Na6 {[%emt 0:00:00]} 11. Bd3 {[%emt 0:00:07] [#]} Rb8 $146 {[%emt 0:00:24]} ({Predecessor:} 11... Nc7 12. e4 b5 13. Re1 c4 14. Bc2 b4 15. Nb1 a5 16. Nbd2 {½-½ (16) Papin,V (2513)-Johansen,D (2404) Sydney 2015}) 12. Re1 {[%emt 0:00:16]} Bd7 {[%emt 0:00:54]} ({Black should try} 12... Nc7 $11) 13. e4 $14 {[%emt 0:00:09]} b5 {[%emt 0:00:00]} 14. Bf4 {[%emt 0:00:00]} (14. a4 $14) 14... c4 $15 {[%emt 0:00:09]} 15. Bc2 {[%emt 0:00:41]} b4 {[%emt 0:00:04]} 16. Na4 {[%emt 0:00:01]} ({Better is} 16. Ne2 $15) 16... b3 {[%emt 0:00:20]} (16... Bxa4 $17 17. Bxa4 Rxe4 18. Rxe4 Nxe4) 17. axb3 $11 {[%emt 0:00:03]} cxb3 {[%emt 0:00:00]} 18. Bd3 {[%emt 0:00:13]} Nb4 {[%emt 0:00:12]} 19. Nc3 {[%emt 0:00:07]} (19. Bxd6 Nxd3 20. Qxd3 Bb5 $17) 19... Qc7 {[%emt 0:00:48]} (19... Nh5 $1 $11 20. Bg5 (20. Bxd6 Bxc3 21. bxc3 Nxd3 $11) 20... Qc8) 20. Bh2 {[%emt 0:00:48]} (20. Rc1 $1 $16) 20... a5 {[%emt 0:00:19]} 21. e5 {[%emt 0:00:11]} Nfxd5 {[%emt 0:00:05]} 22. exd6 $2 {[%emt 0:00:31][%mdl 8192]} (22. Nxd5 $11 {and White stays safe.} Nxd5 23. Rc1) 22... Rxe1+ $19 {[%emt 0:00:10]} 23. Qxe1 {[%emt 0:00:02]} (23. Nxe1 $142 Qc6 24. Na4) 23... Qc5 {[%emt 0:00:12]} 24. Ne4 {[%emt 0:00:46] [#]} Qc6 {[%emt 0:00:44]} ({Inferior is} 24... Nxd3 25. Nxc5 Nxe1 26. Nxd7 (26. Rxe1 Nb6 $11) 26... Nxf3+ 27. gxf3 $11) 25. Qd2 {[%emt 0:00:34]} Nxd3 {[%emt 0:00:10]} 26. Qxd3 {[%emt 0:00:00]} Bxb2 {[%emt 0:00:02] A strong pair of Bishops.} 27. Ne5 $2 {[%emt 0:00:00]} (27. Re1 {was the only defense.} Bg7 28. Ne5) 27... Bxe5 $2 {[%emt 0:00:48]} ({Resist} 27... Bxa1 28. Nxc6 Bxc6 29. d7 $18) (27... Qb5 $19 28. Qxb5 Rxb5) 28. Bxe5 $11 {[%emt 0:00:02]} b2 {[%emt 0:00:13] [#]} (28... Bf5 $11 {keeps the balance.} 29. d7 Rd8 30. Qxd5 Bxe4 31. Qxb3 Bxg2) 29. Rb1 $1 $16 {[%emt 0:00:07][%cal Od3d5] aiming for Qxd5! &Bianco is more active.} Bf5 $2 {[%emt 0:00:16]} (29... Rb5 $14) 30. Rxb2 $18 {[%emt 0:00:17] Dancing on a razor blade.} Rxb2 {[%emt 0:00:10]} 31. Bxb2 {[%emt 0:00:00] Strongly threatening Nf6+.} Bxe4 {[%emt 0:00:05]} (31... Qb6) 32. Qxe4 {[%emt 0:00:34]} Kf8 {[%emt 0:00:05]} 33. Qe5 {[%emt 0:00:13][%cal Re5h8]} f6 {[%emt 0:00:05]} 34. Qe6 {[%emt 0:00:02]} Qb6 {[%emt 0:00:10]} 35. Bxf6 {[%emt 0:00:11]} (35. Ba3 $142 Qb3 36. d7+ Qxa3 37. d8=Q+ Kg7 38. Qexd5 Qc1+ 39. Qd1 Qxd1+ 40. Qxd1) 35... Nxf6 {[%emt 0:00:04]} 36. Qxf6+ {[%emt 0:00:00] White mates.} Kg8 {[%emt 0:00:00]} 37. Qe6+ {[%emt 0:00:02]} Kg7 {[%emt 0:00:01]} 38. Qe7+ {[%emt 0:00:02]} Kh6 {[%emt 0:00:02]} 39. d7 {[%emt 0:00:01]} Qb1+ {[%emt 0:00:05]} 40. Kh2 {[%emt 0:00:02] Weighted Error Value: White=0.42/Black=0.81} 1-0

[Event "MCCT Oslo Esports Cup 2022"]
[Site "Oslo"]
[Date "2022.04.20"]
[Round "5.6"]
[White "Duda, Jan-Krzysztof"]
[Black "Le, Quang Liem"]
[Result "0-1"]
[ECO "D32"]
[WhiteElo "2750"]
[BlackElo "2709"]
[Annotator "TA"]
[PlyCount "140"]
[EventDate "2022.04.14"]
[EventType "tourn"]
[EventCountry "NOR"]
[SourceTitle "playchess.com"]
[Source "ChessBase"]
[SourceQuality "1"]
[TimeControl "300+3"]

{[%evp 30,140,13,22,20,8,14,25,25,21,17,11,21,0,26,-12,-6,-9,0,-88,0,0,21,20,27,0,9,0,0,0,0,0,28,29,34,43,44,34,38,0,35,42,41,48,48,0,0,0,0,0,0,-8,0,-8,-8,-46,-8,-44,-41,-50,0,-8,0,-39,0,-11,39,17,16,-8,0,-55,0,-37,0,0,0,-85,0,0,0,0,0,0,0,-13,-7,-23,-20,-23,-13,-15,0,0,0,0,0,-37,-10,-14,0,0,0,-41,-47,-127,-108,-282,-274,-12843,-12843,-12842,-12841]} 1. Nf3 {[%emt 0:00:00]} Nf6 {[%emt 0:00:00]} 2. c4 {[%emt 0:00:01]} c5 {[%emt 0:00:02]} 3. Nc3 {[%emt 0:00:12]} Nc6 {[%emt 0:00:01]} 4. e3 {[%emt 0:00:00]} e6 {[%emt 0:00:01]} 5. d4 {[%emt 0:00:02]} d5 {[%emt 0:00:01]} 6. cxd5 {[%emt 0:00:04]} exd5 {[%emt 0:00:00]} 7. Bb5 {[%emt 0:00:02]} cxd4 {[%emt 0:00:01]} 8. Nxd4 {[%emt 0:00:00]} Bd7 {[%emt 0:00:01]} 9. O-O {[%emt 0:00:02]} Bd6 {[%emt 0:00:04]} 10. Nf3 {[%emt 0:00:02]} a6 {[%emt 0:00:07]} 11. Be2 {[%emt 0:00:03]} Bg4 {[%emt 0:00:07]} 12. h3 {[%emt 0:00:04]} Bh5 {[%emt 0:00:01]} 13. Nh4 {[%emt 0:00:18]} Bxe2 {[%emt 0:00:10]} 14. Nxe2 {[%emt 0:00:00]} O-O {[%emt 0:00:01]} 15. b3 {[%emt 0:00:04]} Ne4 {[%emt 0:00:28]} 16. Nf3 {[%emt 0:00:08]} Qf6 {[%emt 0:00:27]} 17. Rb1 {[%emt 0:00:05]} Rad8 {[%emt 0:00:02]} 18. Bb2 {[%emt 0:00:02]} Qg6 {[%emt 0:00:01]} 19. Rc1 {[%emt 0:00:13]} Rfe8 {[%emt 0:00:05]} 20. a3 {[%emt 0:00:29]} h6 {[%emt 0:00:11]} 21. b4 {[%emt 0:00:01]} Bb8 {[%emt 0:00:16]} 22. Ned4 {[%emt 0:00:26]} Ne5 {[%emt 0:00:23]} 23. Nxe5 {[%emt 0:00:51]} Bxe5 {[%emt 0:00:00]} 24. Qe2 {[%emt 0:00:04] [#]} (24. Qc2 $11 {remains equal.}) 24... Qf6 {[%emt 0:00:17]} (24... Ng5 $1 $17 {White must now prevent ...Nxh3+.} 25. h4 Nh3+ 26. Kh1 {[#]} Nf4 $1 27. exf4 Bxd4) 25. Qg4 {[%emt 0:01:06]} Nd2 {[%emt 0:00:12]} 26. Rfd1 {[%emt 0:00:06]} Nc4 {[%emt 0:00:02]} 27. Rc2 {[%emt 0:00:02]} b5 {[%emt 0:00:19]} 28. Bc1 {[%emt 0:00:06]} g6 {[%emt 0:00:14]} 29. Rd3 {[%emt 0:00:09]} h5 {[%emt 0:00:24]} 30. Qd1 {[%emt 0:00:01]} Qb6 {[%emt 0:00:12]} 31. Bb2 {[%emt 0:00:11]} Bg7 {[%emt 0:00:17]} 32. Ba1 {[%emt 0:00:02]} Ne5 {[%emt 0:00:13]} 33. Rdc3 {[%emt 0:00:06]} Nc4 {[%emt 0:00:01]} 34. Rd3 {[%emt 0:00:01]} Ne5 $1 {[%emt 0:00:01]} 35. Rb3 {[%emt 0:00:04]} Rc8 {[%emt 0:00:02]} 36. Ra2 {[%emt 0:00:16]} Nc4 {[%emt 0:00:49]} 37. Rb1 {[%emt 0:00:10]} (37. a4 $14) 37... Nd6 $11 {[%emt 0:00:08]} 38. Rd2 {[%emt 0:00:12]} Ne4 {[%emt 0:00:09]} 39. Rd3 {[%emt 0:00:01]} Rc4 {[%emt 0:00:03]} 40. Qe1 {[%emt 0:00:23]} Rec8 {[%emt 0:00:05]} 41. Rbd1 {[%emt 0:00:00]} Qc7 {[%emt 0:00:07]} 42. Bb2 {[%emt 0:00:04]} Qe5 {[%emt 0:00:08]} 43. Qf1 {[%emt 0:00:26]} Qf6 {[%emt 0:00:11]} 44. Ba1 {[%emt 0:00:03]} Qb6 {[%emt 0:00:05]} 45. Qe1 {[%emt 0:00:06]} Qc7 {[%emt 0:00:02]} 46. Bb2 {[%emt 0:00:06]} Qe5 {[%emt 0:00:02]} 47. f3 {[%emt 0:00:02]} Nf6 {[%emt 0:00:12]} (47... Nd6 $11) 48. R3d2 {[%emt 0:00:03]} Qe7 {[%emt 0:00:04]} 49. Qf2 {[%emt 0:00:02]} Nd7 {[%emt 0:00:03]} 50. Re2 {[%emt 0:00:05]} ({White should play} 50. e4 $11) 50... Re8 {[%emt 0:00:03]} (50... Nb6 $15) 51. Qg3 {[%emt 0:00:02]} Be5 {[%emt 0:00:16]} 52. f4 {[%emt 0:00:05]} Bf6 {[%emt 0:00:05]} 53. f5 {[%emt 0:00:04]} (53. e4 $11) 53... h4 {[%emt 0:00:04]} (53... Be5 $17 54. Qf3 Nf6) 54. Qf3 $11 {[%emt 0:00:04]} Qe4 {[%emt 0:00:01]} 55. fxg6 {[%emt 0:00:05]} fxg6 {[%emt 0:00:00]} 56. Qxe4 {[%emt 0:00:13]} Rxe4 {[%emt 0:00:06]} 57. Kf2 {[%emt 0:00:01]} Nb6 {[%emt 0:00:04]} 58. Ba1 {[%emt 0:00:10]} Rc7 {[%emt 0:00:02]} 59. Nf3 {[%emt 0:00:02]} Bxa1 {[%emt 0:00:06]} 60. Rxa1 {[%emt 0:00:00]} Rc3 {[%emt 0:00:02]} 61. Ng5 {[%emt 0:00:03]} Re5 {[%emt 0:00:02]} 62. Nf3 {[%emt 0:00:01]} Re4 {[%emt 0:00:00]} 63. Raa2 {[%emt 0:00:03]} Nc4 {[%emt 0:00:03]} 64. a4 $1 {[%emt 0:00:04]} Nxe3 {[%emt 0:00:02]} 65. axb5 {[%emt 0:00:01]} axb5 {[%emt 0:00:00]} 66. Ra8+ {[%emt 0:00:03]} Kg7 {[%emt 0:00:01]} 67. Ra7+ {[%emt 0:00:08]} ({Better is} 67. Rea2 $15 Rc2+ 68. Rxc2 Nxc2 69. Rb8) 67... Kh6 $17 {[%emt 0:00:02]} 68. Rd2 $2 {[%emt 0:00:04]} (68. Nxh4 $17 Rf4+ 69. Nf3 Nxg2 70. Kxg2 Rfxf3 71. Rb7) 68... Rc1 {[%emt 0:00:06]} ({Wrong is} 68... Rxb4 $2 69. Rda2 $19) 69. g4 $2 {[%emt 0:00:05]} (69. Ra8 Nd1+ 70. Kg1) 69... hxg3+ $1 $19 {[%emt 0:00:04]} 70. Kxg3 {[%emt 0:00:03]} Nf1+ {[%emt 0:00:00]} 0-1